bitfinex-derivatives/quotes_ETHF0:USTF0_20250411
["timestamp","ask_amount","ask_price","bid_price","bid_amount"]
[1744388648701,0.00634621,1560.6,1560.5,3.77488]
[1744388649312,8.43499549,1560.6,1560.5,3.77488]
[1744388651412,8.43499549,1560.6,1560.5,4.66638]
[1744388652218,8.43499549,1560.6,1560.5,1.28238]
[1744388652404,9.71729549,1560.6,1560.5,1.28238]
[1744388652698,8.43499549,1560.6,1560.5,1.28238]
[1744388653303,0.00634621,1560.6,1560.5,1.28238]
[1744388653501,1.28864621,1560.6,1560.4,1.59602927]
[1744388653705,2.96230621,1560.6,1560.5,1.28238]
[1744388654213,0.00634621,1560.6,1560.5,1.28238]
[1744388654716,1.28864621,1560.6,1560.5,1.28238]
[1744388655014,1.28238,1560.5,1560.4,1.59602927]
[1744388655416,4.73128621,1560.6,1560.5,1.28238]
[1744388657014,1.28238,1560.5,1560.4,2.87841927]
[1744388657512,2.89628,1560.5,1560.4,2.87841927]
[1744388659617,1.6139,1560.5,1560.4,2.87841927]
[1744388660014,1.77534621,1560.6,1560.5,1.28238]
[1744388660218,4.75394621,1560.6,1560.5,1.28238]
[1744388661221,0.00634621,1560.6,1560.5,1.28238]
[1744388661412,0.00634621,1560.6,1560.5,2.97408]
[1744388661718,0.00634621,1560.6,1560.5,7.80208]
[1744388661917,7.47313125,1560.6,1560.5,7.80208]
[1744388662220,7.47313125,1560.6,1560.5,12.80208]
[1744388663020,7.47313125,1560.6,1560.5,7.80208]
[1744388664720,7.47313125,1560.6,1560.5,2.97408]
[1744388665524,7.47313125,1560.6,1560.5,1.28238]
[1744388665714,11.02023125,1560.6,1560.5,1.28238]
[1744388666317,1.28238,1560.5,1560.4,0.00962927]
[1744388666517,6.23478,1560.5,1560.4,0.00962927]
[1744388666718,1.28269,1560.2,1560.1,1.28269]
[1744388667221,1.28271,1560.1,1560.0,2.90202]
[1744388667422,3.5974,1560.2,1560.1,1.28271]
[1744388669020,4.88003,1560.2,1560.1,1.28271]
[1744388672022,13.30855523,1560.2,1560.1,1.28271]
[1744388674228,8.42852523,1560.2,1560.1,1.28271]
[1744388674429,8.42852523,1560.2,1560.1,3.85241]
[1744388675128,9.71115523,1560.2,1560.1,3.85241]
[1744388675324,10.09572523,1560.2,1560.1,3.85241]
[1744388675523,11.37835523,1560.2,1560.1,3.85241]
[1744388676327,2.24437019,1560.2,1560.1,3.85241]
[1744388676535,0.96174019,1560.2,1560.1,3.85241]
[1744388676723,2.24437019,1560.2,1560.1,3.85241]
[1744388677733,0.96174019,1560.2,1560.1,3.85241]
[1744388678435,2.24437019,1560.2,1560.1,3.85241]
[1744388678638,3.94667019,1560.2,1560.1,3.85241]
[1744388678832,3.94667019,1560.2,1560.1,1.7024]
[1744388679234,1.28271,1560.1,1560.0,1.29234927]
[1744388679433,2.98501,1560.1,1560.0,2.90874927]
[1744388679736,2.98501,1560.1,1560.0,1.62602927]
[1744388679938,7.99551,1560.1,1560.0,0.00962927]
[1744388680131,12.99551,1560.1,1560.0,0.00962927]
[1744388682341,12.99551,1560.1,1559.5,10.05923257]
[1744388682342,1.28312,1559.6,1559.5,10.05923257]
[1744388683139,7.98552,1559.6,1559.5,2.83753184]
[1744388684532,1.2832,1559.5,1559.4,0.00962927]
[1744388684732,2.9008,1559.5,1559.4,0.00962927]
[1744388685439,2.9008,1559.5,1559.4,1.29290927]
[1744388685739,4.8254,1559.5,1559.4,2.90440927]
[1744388685941,1.6176,1559.5,1559.4,2.90440927]
[1744388686653,2.9008,1559.5,1559.4,2.90440927]
[1744388686858,2.9008,1559.5,1559.4,1.62112927]
[1744388687759,2.9008,1559.5,1559.4,2.90440927]
[1744388688358,2.9008,1559.5,1559.4,1.62112927]
[1744388688555,6.1086,1559.5,1559.4,0.00962927]
[1744388688863,11.1086,1559.5,1559.4,0.00962927]
[1744388689062,15.9396,1559.5,1559.4,0.00962927]
[1744388689560,10.9396,1559.5,1559.4,0.00962927]
[1744388690961,10.9396,1559.5,1559.4,1.29290927]
[1744388691154,10.9396,1559.5,1559.4,1.67692927]
[1744388691664,6.1086,1559.5,1559.4,2.96020927]
[1744388691966,6.1086,1559.5,1559.4,1.67692927]
[1744388692369,6.1086,1559.5,1559.4,0.00962927]
[1744388692666,11.1086,1559.5,1559.4,0.00962927]
[1744388693759,11.9889,1559.5,1559.4,0.00962927]
[1744388694473,6.9889,1559.5,1559.4,0.00962927]
[1744388699471,6.9889,1559.5,1559.4,1.71122927]
[1744388699973,6.9889,1559.5,1559.4,0.00962927]
[1744388701975,3.20925,1558.9,1558.6,1.28386]
[1744388702175,1.2837,1558.9,1558.8,1.6016]
[1744388702468,2.9757,1558.9,1558.8,1.6016]
[1744388702773,4.95574,1559.1,1559.0,1.28353]
[1744388702774,1.28357,1559.1,1559.0,1.28353]
[1744388703074,1.28357,1559.1,1558.9,1.29327927]
[1744388703075,1.2837,1559.0,1558.9,1.29327927]
[1744388703376,1.28357,1559.1,1559.0,1.28353]
[1744388703672,1.28357,1559.1,1559.0,2.16403]
[1744388703867,2.97557,1559.1,1559.0,3.76563]
[1744388704069,2.97557,1559.1,1559.0,2.4821]
[1744388704471,2.97557,1559.1,1559.0,3.76571]
[1744388704775,2.97557,1559.1,1559.0,2.4821]
[1744388704962,2.97557,1559.1,1558.9,0.00962927]
[1744388704963,1.28361,1559.0,1558.9,0.00962927]
[1744388705165,2.93661,1559.0,1558.9,0.00962927]
[1744388705469,6.14441,1559.0,1558.9,0.00962927]
[1744388705671,10.97141,1559.0,1558.9,0.00962927]
[1744388706071,6.41954,1558.7,1557.9,92.1418]
[1744388706271,1.28435,1558.2,1558.0,3.346]
[1744388706570,3.2078,1558.4,1558.2,1.28426]
[1744388706770,3.2078,1558.4,1558.0,4.9743]
[1744388706972,7.26807,1558.5,1558.4,1.28411]
[1744388707170,9.31881,1558.6,1558.5,1.28402]
[1744388707367,3.21742927,1558.6,1558.5,1.28402]
[1744388707673,4.50136927,1558.6,1558.5,1.28402]
[1744388708271,3.21742927,1558.6,1558.4,0.8828]
[1744388708574,4.50143927,1558.6,1558.5,1.28402]
[1744388709571,3.21742927,1558.6,1558.4,2.16683]
[1744388709772,1.28402,1558.5,1558.4,0.8828]
[1744388709980,1.28411,1558.4,1558.3,0.89002927]
[1744388710681,1.28411,1558.4,1558.3,2.17421927]
[1744388711780,4.50143927,1558.6,1558.5,1.28402]
[1744388711970,3.21742927,1558.6,1558.4,0.8324]
[1744388712175,1.28402,1558.5,1558.4,0.8324]
[1744388713577,1.28411,1558.4,1558.3,0.89002927]
[1744388713783,6.22981,1558.4,1558.3,0.00962927]
[1744388714085,11.22981,1558.4,1558.3,0.00962927]
[1744388714379,16.05781,1558.4,1558.3,0.00962927]
[1744388715483,16.05781,1558.4,1558.3,9.27e-06]
[1744388716284,3.21075,1558.2,1557.5,4.828]
[1744388716579,3.21075,1558.2,1557.6,2.15549]
[1744388716580,3.2078,1557.7,1557.6,2.15549]
[1744388716781,1.28458,1557.9,1557.8,1.2846]
[1744388716978,4.829,1558.1,1557.7,3.21171]
[1744388717175,1.28443,1558.1,1558.0,1.28441]
[1744388717370,1.28439,1558.1,1558.0,1.28438]
[1744388717575,1.28444,1558.0,1557.9,2.11468927]
[1744388717782,0.00962927,1558.2,1558.0,1.28438]
[1744388717783,1.2844,1558.1,1558.0,1.28438]
[1744388718381,0.00962927,1558.2,1557.9,0.83022927]
[1744388718686,1.28444,1558.0,1557.9,2.11466927]
[1744388718987,1.28442,1558.1,1558.0,1.2844]
[1744388719687,1.29393927,1558.2,1558.1,1.28435]
[1744388719883,0.00962927,1558.2,1557.9,4.04144927]
[1744388720082,1.29396927,1558.2,1558.1,1.28435]
[1744388720478,0.00962927,1558.2,1558.1,6.28435]
[1744388722281,0.00962927,1558.2,1558.0,1.28441]
[1744388722482,1.29389927,1558.2,1558.1,1.6757]
[1744388723490,1.29389927,1558.2,1558.1,2.96005]
[1744388724086,0.00962927,1558.2,1558.1,7.96005]
[1744388724588,0.00962927,1558.2,1558.1,2.96005]
[1744388725188,1.29389927,1558.2,1558.1,2.96005]
[1744388726184,1.28444,1558.0,1557.9,0.83022927]
[1744388726388,4.49224,1558.0,1557.9,0.00962927]
[1744388726776,6.08104,1558.0,1557.9,0.00962927]
[1744388727088,15.90604,1558.0,1557.9,0.00962927]
[1744388727295,15.90604,1558.0,1557.9,9.27e-06]
[1744388728187,1.28444,1558.0,1557.9,9.27e-06]
[1744388728389,6.08104,1558.0,1557.9,9.27e-06]
[1744388728689,11.08104,1558.0,1557.9,9.27e-06]
[1744388730391,6.08104,1558.0,1557.9,9.27e-06]
[1744388731291,11.08104,1558.0,1557.9,9.27e-06]
[1744388732189,6.08104,1558.0,1557.9,9.27e-06]
[1744388733095,4.49224,1558.0,1557.9,1.60010927]
[1744388733291,1.28444,1558.0,1557.9,2.47790927]
[1744388733492,4.49224,1558.0,1557.9,2.47790927]
[1744388733693,1.28444,1558.0,1557.9,2.47790927]
[1744388734490,4.49224,1558.0,1557.9,2.47790927]
[1744388734690,6.11724,1558.0,1557.9,2.47790927]
[1744388734887,4.49224,1558.0,1557.9,2.47790927]
[1744388736087,4.92771994,1558.1,1557.9,7.47790927]
[1744388736287,9.41986994,1558.1,1558.0,2.571]
[1744388736493,9.41986994,1558.1,1558.0,1.6911]
[1744388736692,1.28444,1558.0,1557.9,0.87780927]
[1744388736993,2.99834,1558.0,1557.9,2.56890927]
[1744388738696,1.28444,1558.0,1557.9,2.56890927]
[1744388739593,1.28444,1558.0,1557.9,3.85342927]
[1744388740193,1.28444,1558.0,1557.9,2.56890927]
[1744388740395,1.28444,1558.0,1557.9,3.85342927]
[1744388740799,1.28444,1558.0,1557.9,2.56890927]
[1744388741896,3.2078,1558.1,1557.9,2.56890927]
[1744388742092,4.49215,1558.1,1558.0,1.7125]
[1744388742309,6.18225,1558.1,1558.0,1.7125]
[1744388742591,1.28444,1558.0,1557.9,9.27e-06]
[1744388742793,2.97454,1558.0,1557.9,9.27e-06]
[1744388742994,2.97454,1558.0,1557.9,1.71250927]
[1744388743395,2.97454,1558.0,1557.9,9.27e-06]
[1744388743591,3.89834,1558.0,1557.9,9.27e-06]
[1744388743897,1.28444,1558.0,1557.9,9.27e-06]
[1744388744097,1.28444,1558.0,1557.9,2.95632927]
[1744388744292,1.28444,1558.0,1557.9,1.67180927]
[1744388745896,1.28444,1558.0,1557.9,9.27e-06]
[1744388746201,3.88934,1558.0,1557.9,9.27e-06]
[1744388749102,9.78060452,1558.0,1557.9,9.27e-06]
[1744388749304,1.28452,1557.9,1557.8,1.6718]
[1744388749497,4.49232,1557.9,1557.8,1.6718]
[1744388749701,6.18962,1557.9,1557.8,1.6718]
[1744388750013,1.28468,1557.7,1557.6,0.9241]
[1744388750497,1.28468,1557.7,1557.6,3.95207]
[1744388750697,1.28468,1557.7,1557.6,2.6673]
[1744388751904,1.28493,1557.4,1557.3,1.8276]
[1744388752098,1.28493,1557.4,1557.3,3.55774921]
[1744388752299,9.694,1557.5,1557.0,3.2078]
[1744388752603,4.49281,1557.3,1557.2,0.9469]
[1744388753198,1.28501,1557.3,1557.2,1.6384]
[1744388754206,1.28501,1557.3,1557.2,2.9235]
[1744388754607,1.28501,1557.3,1557.2,1.6384]
[1744388755008,0.00962927,1557.4,1557.3,1.28501]
[1744388755208,0.00962927,1557.4,1557.3,2.18321]
[1744388755409,0.00962927,1557.4,1557.3,13.64461]
[1744388756511,17.38974624,1557.4,1557.3,13.64461]
[1744388760815,0.00962927,1557.4,1557.3,13.64461]
[1744388761209,0.00962927,1557.4,1557.3,8.64461]
[1744388762512,0.00962927,1557.4,1557.3,13.64461]
[1744388762813,4.96450733,1557.7,1557.6,1.28477]
[1744388763113,4.95145654,1557.7,1557.6,42.08477]
[1744388763314,4.95145654,1557.7,1557.6,44.64407]
[1744388763911,4.95145654,1557.7,1557.6,54.46707]
[1744388764419,9.95790093,1557.7,1557.6,54.46707]
[1744388765019,12.36825358,1557.8,1557.7,1.28468]
[1744388765316,12.36825358,1557.8,1557.7,6.15678]
[1744388765503,12.36825358,1557.8,1557.7,11.15678]
[1744388765710,12.36825358,1557.8,1557.7,51.95678]
[1744388766220,12.36825358,1557.8,1557.7,46.95678]
[1744388767222,12.36825358,1557.8,1557.7,43.74898]
[1744388767617,12.36825358,1557.8,1557.7,51.95678]
[1744388767918,0.00962927,1557.8,1557.7,51.95678]
[1744388768124,0.00962927,1557.8,1557.7,52.87458]
[1744388768519,0.96345223,1558.1,1558.0,1.28444]
[1744388768723,0.96345223,1558.1,1558.0,6.10744]
[1744388769017,1.28444,1558.0,1557.9,6.12725]
[1744388769212,5.45567223,1558.1,1558.0,1.28444]
[1744388769416,1.28444,1558.0,1557.9,42.08445]
[1744388769626,3.77454,1558.0,1557.9,40.8]
[1744388770126,1.28452,1557.9,1557.8,1.28454]
[1744388770420,1.2846,1557.8,1557.7,2.20243]
[1744388770610,1.2846,1557.8,1557.7,43.00243]
[1744388770811,1.2846,1557.8,1557.5,95.45254927]
[1744388770812,1.28477,1557.6,1557.5,0.00962927]
[1744388771020,4.49257,1557.6,1557.5,0.00962927]
[1744388771519,5.42817,1557.6,1557.5,1.29447927]
[1744388771725,5.42817,1557.6,1557.5,0.00962927]
[1744388772224,10.42817,1557.6,1557.5,0.00962927]
[1744388772716,1.2851,1557.2,1557.1,18.17573276]
[1744388772917,4.4929,1557.2,1557.1,14.95488197]
[1744388773226,14.3159,1557.2,1557.1,9.09851124]
[1744388773721,15.1723,1557.2,1557.1,9.09851124]
[1744388774617,15.1723,1557.2,1557.1,6.13234124]
[1744388774815,16.8463,1557.2,1557.1,4.75145124]
[1744388775011,16.8463,1557.2,1557.1,1.24e-06]
[1744388775322,1.28518,1557.1,1557.0,8.94306331]
[1744388775520,1.28518,1557.1,1557.0,2.88375228]
[1744388775715,1.28526,1557.0,1556.9,22.42636936]
[1744388775920,4.49306,1557.0,1556.9,22.42636936]
[1744388776225,4.49306,1557.0,1556.2,1.28589]
[1744388776226,1.28584,1556.3,1556.2,1.28589]
[1744388776424,11.2458,1556.6,1556.1,0.9044]
[1744388776619,11.2458,1556.6,1556.2,1.28587]
[1744388776820,11.2458,1556.6,1556.1,1.28595]
[1744388776821,1.28584,1556.3,1556.1,1.28595]
[1744388777118,3.2078,1556.4,1556.0,0.9269]
[1744388777323,1.286,1556.1,1556.0,0.9269]
[1744388777522,11.24624,1556.4,1556.0,0.9269]
[1744388777725,1.286,1556.1,1555.9,21.44985346]
[1744388778023,8.0318,1556.4,1556.2,1.2859]
[1744388778223,1.28586,1556.3,1556.2,1.2859]
[1744388778420,1.28573,1556.5,1556.1,3.21496]
[1744388778628,1.28573,1556.5,1556.3,1.28581]
[1744388778826,1.28576,1556.4,1556.3,1.28581]
[1744388779129,1.28584,1556.3,1556.2,1.28586]
[1744388779331,1.28579,1556.4,1556.3,1.28584]
[1744388779529,1.28572,1556.5,1556.3,1.28584]
[1744388779723,1.28572,1556.5,1556.1,3.215]
[1744388780029,1.28572,1556.5,1556.3,1.28579]
[1744388780229,1.28571,1556.5,1556.1,3.215]
[1744388780528,9.32708927,1556.6,1556.4,1.28576]
[1744388781043,3.21742927,1556.6,1556.5,1.28567]
[1744388781221,0.00962927,1556.6,1556.5,1.28567]
[1744388781423,0.00962927,1556.6,1556.4,1.28572]
[1744388781630,1.29527927,1556.6,1556.3,41.7048]
[1744388781930,1.28568,1556.5,1556.3,42.99058]
[1744388782125,1.28568,1556.5,1556.3,1.28578]
[1744388782521,1.29523927,1556.6,1556.4,1.6356]
[1744388782720,1.28567,1556.5,1556.4,1.6356]
[1744388783027,4.50308927,1556.6,1556.4,2.92129]
[1744388783228,4.50308927,1556.6,1556.5,1.28567]
[1744388783430,1.29528927,1556.6,1556.5,2.92127]
[1744388783632,1.29528927,1556.6,1556.5,1.6356]
[1744388784333,0.00962927,1556.6,1556.5,2.92127]
[1744388784525,1.29521927,1556.6,1556.5,2.92127]
[1744388784728,0.00962927,1556.6,1556.5,2.92127]
[1744388785723,0.00962927,1556.6,1556.5,7.92127]
[1744388786126,8.69003475,1557.0,1556.5,7.92127]
[1744388786127,7.40475475,1557.0,1556.9,1.28534]
[1744388786828,7.40475475,1557.0,1556.9,2.93484]
[1744388787727,7.40475475,1557.0,1556.9,7.93484]
[1744388788528,7.40475475,1557.0,1556.9,12.75784]
[1744388788830,0.00962927,1557.1,1557.0,1.28526]
[1744388789132,0.00962927,1557.1,1557.0,3.83966]
[1744388789437,9.27e-06,1557.1,1557.0,12.04746]
[1744388790026,17.18162431,1557.9,1557.8,1.2846]
[1744388790229,4.80994921,1557.9,1557.8,1.2846]
[1744388790431,1.28452,1557.9,1557.8,1.2846]
[1744388790638,1.28447,1558.0,1557.9,1.28449]
[1744388791142,1.28448,1558.0,1557.9,1.2845]
[1744388791434,1.2845,1558.0,1557.9,1.28452]
[1744388791634,6.2845,1558.0,1557.9,1.733]
[1744388791834,6.2845,1558.0,1557.9,3.01752]
[1744388792234,6.2845,1558.0,1557.9,1.733]
[1744388792436,1.28452,1557.9,1557.8,0.00962927]
[1744388792737,4.49232,1557.9,1557.8,1.74262927]
[1744388793132,9.49232,1557.9,1557.8,0.00962927]
[1744388793737,9.49232,1557.9,1557.8,1.59272927]
[1744388794333,3.2078,1557.9,1557.8,2.87732927]
[1744388794533,4.49232,1557.9,1557.8,2.87732927]
[1744388795030,3.2078,1557.9,1557.8,2.87732927]
[1744388795232,4.49232,1557.9,1557.8,2.87732927]
[1744388796839,1.28452,1557.9,1557.8,2.87732927]
[1744388797032,1.28449,1558.0,1557.9,1.2845]
[1744388797337,8.04042927,1558.1,1558.0,1.28444]
[1744388797338,4.50184927,1558.1,1558.0,1.28444]
[1744388797537,4.50184927,1558.1,1557.9,2.18068]
[1744388797538,1.28444,1558.0,1557.9,2.18068]
[1744388797740,1.28444,1558.0,1557.9,0.8962]
[1744388798341,1.28452,1557.9,1557.8,1.29418927]
[1744388798537,4.49232,1557.9,1557.8,0.00962927]
[1744388799742,3.2078,1557.9,1557.8,1.29422927]
[1744388800038,4.49232,1557.9,1557.8,0.00962927]
[1744388800640,14.31332,1557.9,1557.8,0.00962927]
[1744388800938,4.49232,1557.9,1557.8,1.29422927]
[1744388801740,3.2078,1557.9,1557.8,1.29422927]
[1744388802439,1.29397927,1558.1,1558.0,1.28444]
[1744388802833,1.28447,1558.0,1557.9,1.28445]
[1744388803041,4.49227,1558.0,1557.9,1.28445]
[1744388803242,3.2078,1558.0,1557.9,1.28445]
[1744388803840,4.49224,1558.0,1557.9,1.28445]
[1744388804047,3.2078,1558.0,1557.9,1.28445]
[1744388804236,4.49224,1558.0,1557.9,1.28445]
[1744388804542,1.29404927,1558.1,1558.0,1.28444]
[1744388804734,4.50184927,1558.1,1558.0,1.28444]
[1744388805434,3.21742927,1558.1,1558.0,1.28444]
[1744388806541,3.21742927,1558.1,1558.0,2.17604]
[1744388807143,0.00962927,1558.1,1558.0,7.17604]
[1744388807446,0.00962927,1558.1,1558.0,2.17604]
[1744388807743,0.00962927,1558.1,1558.0,7.17604]
[1744388807940,0.00962927,1558.1,1558.0,2.17604]
[1744388808945,1.29397927,1558.1,1558.0,2.17604]
[1744388809142,0.00962927,1558.1,1558.0,2.17604]
[1744388811948,1.29397927,1558.1,1558.0,2.17604]
[1744388812148,1.29397927,1558.1,1558.0,0.8916]
[1744388813046,0.00962927,1558.1,1558.0,2.17604]
[1744388813345,1.29397927,1558.1,1558.0,2.17604]
[1744388813543,0.00962927,1558.1,1558.0,3.76484]
[1744388814048,1.29397927,1558.1,1558.0,3.76484]
[1744388814450,0.00962927,1558.1,1558.0,3.76484]
[1744388815150,1.29397927,1558.1,1558.0,3.76484]
[1744388818653,0.00962927,1558.1,1558.0,3.76484]
[1744388819055,1.29397927,1558.1,1558.0,3.76484]
[1744388819554,0.00962927,1558.1,1558.0,3.76484]
[1744388819755,1.29397927,1558.1,1558.0,3.76484]
[1744388820456,4.50177927,1558.1,1558.0,2.4804]
[1744388820956,1.29397927,1558.1,1558.0,3.76484]
[1744388822856,0.00962927,1558.1,1558.0,3.76484]
[1744388823251,1.29397927,1558.1,1558.0,3.76484]
[1744388823551,0.00962927,1558.1,1558.0,3.76484]
[1744388823949,0.00962927,1558.1,1558.0,8.76484]
[1744388824154,0.00962927,1558.1,1558.0,3.76484]
[1744388824863,0.00962927,1558.1,1558.0,13.58284]
[1744388825359,1.2841,1558.5,1558.4,1.28411]
[1744388825554,6.41768,1558.6,1558.5,1.28402]
[1744388825555,3.2078,1558.6,1558.5,1.28402]
[1744388825747,6.41727,1558.8,1558.5,1.28402]
[1744388825953,3.2078,1558.8,1558.7,1.28386]
[1744388826451,4.49158,1558.8,1558.7,1.28386]
[1744388826661,3.2078,1558.8,1558.7,1.28386]
[1744388826959,4.49158,1558.8,1558.7,2.18496]
[1744388827359,1.28378,1558.8,1558.7,2.18496]
[1744388827665,11.14979472,1558.9,1558.8,1.28378]
[1744388827855,1.28378,1558.8,1558.7,2.18489]
[1744388828056,1.28378,1558.8,1558.7,0.9011]
[1744388828563,1.28378,1558.8,1558.7,1.6524]
[1744388829355,1.28378,1558.8,1558.7,2.93626]
[1744388829562,14.35758472,1558.9,1558.8,1.28378]
[1744388829863,11.14978472,1558.9,1558.8,2.91048]
[1744388830066,1.29337927,1558.9,1558.8,1.6267]
[1744388830363,4.50117927,1558.9,1558.8,1.6267]
[1744388830567,1.28386,1558.7,1558.6,0.00962927]
[1744388830767,4.49166,1558.7,1558.6,2.92026927]
[1744388831159,1.28386,1558.7,1558.6,2.92026927]
[1744388831658,4.49166,1558.7,1558.6,2.92026927]
[1744388831966,3.2078,1558.7,1558.6,2.92026927]
[1744388833367,4.49166,1558.7,1558.6,2.92026927]
[1744388834166,4.49166,1558.7,1558.6,1.63632927]
[1744388834563,9.49166,1558.7,1558.6,1.63632927]
[1744388834769,9.49946,1558.7,1558.6,0.00962927]
[1744388835670,4.49946,1558.7,1558.6,0.00962927]
[1744388837464,4.49166,1558.7,1558.6,1.73052927]
[1744388838868,4.49166,1558.7,1558.6,3.01446927]
[1744388839073,1.28386,1558.7,1558.6,3.01446927]
[1744388841667,1.28384,1558.8,1558.7,1.28381]
[1744388842971,3.21742927,1558.9,1558.8,1.28378]
[1744388843168,4.50118927,1558.9,1558.8,1.28378]
[1744388843373,15.6276311,1558.9,1558.8,1.28378]
[1744388843573,16.9113311,1558.9,1558.8,2.16288]
[1744388843774,16.9113311,1558.9,1558.8,3.80848]
[1744388843968,13.7035311,1558.9,1558.8,3.80848]
[1744388844278,16.9113311,1558.9,1558.8,2.92938]
[1744388844477,13.7035311,1558.9,1558.8,2.92938]
[1744388845072,12.4198311,1558.9,1558.8,2.92938]
[1744388845578,12.4198311,1558.9,1558.8,7.92938]
[1744388846970,12.4198311,1558.9,1558.8,2.92938]
[1744388847176,0.97259793,1558.9,1558.8,2.92938]
[1744388847978,2.25629793,1558.9,1558.8,2.92938]
[1744388848279,0.97259793,1558.9,1558.8,2.92938]
[1744388848478,2.25629793,1558.9,1558.8,2.92938]
[1744388848678,0.97259793,1558.9,1558.8,2.92938]
[1744388851183,0.00962927,1558.9,1558.8,43.72938]
[1744388852282,1.29332927,1558.9,1558.8,43.72938]
[1744388852674,1.29332927,1558.9,1558.8,42.4456]
[1744388852983,1.29332927,1558.9,1558.8,2.92938]
[1744388853883,0.00962927,1558.9,1558.8,2.92938]
[1744388854182,1.29332927,1558.9,1558.8,2.92938]
[1744388854981,8.73930219,1558.9,1558.8,2.92938]
[1744388855484,7.45560219,1558.9,1558.8,2.92938]
[1744388856885,8.73930219,1558.9,1558.8,1.6456]
[1744388857669,8.73930219,1558.9,1558.8,2.92938]
[1744388857878,7.45560219,1558.9,1558.8,2.92938]
[1744388858083,8.73930219,1558.9,1558.8,2.92938]
[1744388858579,8.73930219,1558.9,1558.8,1.6456]
[1744388858980,8.73930219,1558.9,1558.8,2.92938]
[1744388859181,8.73930219,1558.9,1558.8,1.6456]
[1744388859581,1.29332927,1558.9,1558.8,1.6456]
[1744388859878,1.29332927,1558.9,1558.8,2.92938]
[1744388860083,1.29332927,1558.9,1558.8,1.6456]
[1744388860782,1.29332927,1558.9,1558.8,2.92938]
[1744388862782,1.29332927,1558.9,1558.8,1.6456]
[1744388863583,1.29332927,1558.9,1558.8,2.92938]
[1744388863880,1.29332927,1558.9,1558.8,1.6456]
[1744388864085,12.18083236,1558.9,1558.8,1.6456]
[1744388864381,12.18983236,1558.9,1558.8,1.6456]
[1744388866081,12.18083236,1558.9,1558.8,2.92938]
[1744388866290,10.89713236,1558.9,1558.8,2.92938]
[1744388866786,10.89713236,1558.9,1558.8,3.80088]
[1744388868183,11.91369709,1558.9,1558.8,3.80088]
[1744388873487,11.91369709,1558.9,1558.8,8.80088]
[1744388873788,8.44319949,1558.9,1558.8,8.80088]
[1744388875985,8.44319949,1558.9,1558.8,12.00868]
[1744388876479,8.44319949,1558.9,1558.8,8.80088]
[1744388877393,8.44319949,1558.9,1558.8,7.00868]
[1744388877887,0.00962927,1558.9,1558.8,7.00868]
[1744388878587,0.00962927,1558.9,1558.8,3.80088]
[1744388880093,0.00962927,1558.9,1558.8,44.60088]
[1744388880987,0.00962927,1558.9,1558.8,47.80868]
[1744388881282,7.47052681,1559.0,1558.9,1.2837]
[1744388881489,8.56706241,1559.2,1559.1,1.28353]
[1744388881685,2.99669241,1559.2,1559.1,4.49133]
[1744388881989,22.06455624,1559.3,1559.2,1.28345]
[1744388882285,22.06455624,1559.3,1559.2,47.75985]
[1744388882785,12.41020183,1559.3,1559.2,47.75985]
[1744388883791,10.69771183,1559.3,1559.2,52.75985]
[1744388884091,8.86437183,1559.3,1559.2,52.75985]
[1744388884395,5.09803183,1559.3,1559.2,52.75985]
[1744388884690,2.25763183,1559.3,1559.2,52.75985]
[1744388884896,1.83e-06,1559.3,1559.2,52.75985]
[1744388885193,1.83e-06,1559.3,1559.2,54.42105]
[1744388885394,1.1e-06,1559.4,1559.3,1.28337]
[1744388885691,1.1e-06,1559.4,1559.3,7.03917]
[1744388886294,1.1e-06,1559.4,1559.3,47.83917]
[1744388886494,1.1e-06,1559.4,1559.3,52.83917]
[1744388886786,13.4385133,1559.6,1559.5,1.2832]
[1744388886991,10.6504433,1559.6,1559.5,9.299]
[1744388887179,7.1476533,1559.6,1559.5,14.299]
[1744388887382,5.4558033,1559.6,1559.5,15.1807]
[1744388887585,3.8816633,1559.6,1559.5,15.1807]
[1744388887884,0.8374933,1559.6,1559.5,15.1807]
[1744388888089,3.3e-06,1559.6,1559.5,15.1807]
[1744388888286,3.45216385,1559.6,1559.5,15.1807]
[1744388888487,1.69639385,1559.6,1559.5,55.9807]
[1744388888693,0.34800385,1559.6,1559.5,50.9807]
[1744388889189,3.85e-06,1559.6,1559.5,50.9807]
[1744388890993,3.85e-06,1559.6,1559.5,52.7178]
[1744388893084,0.00962927,1559.7,1559.6,1.28312]
[1744388893287,0.00962927,1559.7,1559.6,2.90702]
[1744388897893,1.67022927,1559.7,1559.6,2.90702]
[1744388898496,1.67022927,1559.7,1559.6,1.28312]
[1744388898883,7.95326927,1559.7,1559.6,1.28312]
[1744388899096,6.67022927,1559.7,1559.6,1.28312]
[1744388900097,7.95326927,1559.7,1559.6,1.28312]
[1744388900298,6.67022927,1559.7,1559.6,1.28312]
[1744388900702,7.95326927,1559.7,1559.6,1.28312]
[1744388901191,7.95326927,1559.7,1559.5,1.28317]
[1744388901192,1.2832,1559.6,1559.5,1.28317]
[1744388901494,3.7904,1559.6,1559.5,1.28317]
[1744388901698,8.7904,1559.6,1559.5,1.28317]
[1744388902200,1.6558,1559.6,1559.5,4.49097]
[1744388902397,1.6558,1559.6,1559.5,6.24007]
[1744388903302,1.6558,1559.6,1559.5,3.03227]
[1744388903700,1.6558,1559.6,1559.5,6.24007]
[1744388903994,0.00962927,1559.7,1559.6,1.28312]
[1744388904192,0.00962927,1559.7,1559.6,7.83422]
[1744388909999,0.00962927,1559.7,1559.6,11.04202]
[1744388911303,1.76392927,1559.7,1559.6,11.04202]
[1744388911604,2.75462927,1559.7,1559.6,6.08512]
[1744388911804,2.75462927,1559.7,1559.6,7.69922]
[1744388912504,2.75462927,1559.7,1559.6,6.08512]
[1744388913108,2.75462927,1559.7,1559.6,7.69922]
[1744388917515,0.00962927,1559.7,1559.6,10.90702]
[1744388921813,9.27e-06,1559.7,1559.6,10.90702]
[1744388922622,1.0412,1560.2,1560.1,1.28271]
[1744388922823,1.0143,1560.3,1560.2,1.28263]
[1744388923119,3.6465,1560.3,1560.2,2.94843]
[1744388924719,11.23721484,1560.4,1560.3,1.28254]